[Event "2nd Sparkasse Trophy Harrwitz Memorial"]
[Site "Bolzano"]
[Date "2025.04.27"]
[Round "5.3"]
[White "Bodrov, Timofey"]
[Black "Casadio, Niccolo`"]
[Result "0-1"]
[Annotator "ChessBase"]
[ECO "A46"]
[WhiteElo "2113"]
[BlackElo "2268"]
[PlyCount "116"]
[EventDate "2025.04.19"]
[EventType "swiss"]
[EventCountry "ITA"]
[SourceTitle "playchess.com"]
[Source "ChessBase"]
[SourceQuality "1"]
[TimeControl "40/5400+30:900+30"]

1. d4 {[%emt 0:00:01]} e6 {[%emt 0:00:12]} 2. Nf3 {[%emt 0:00:40]} Nf6 {[%emt 0:00:20]} 3. Bg5 {[%emt 0:00:35]} h6 {[%emt 0:00:17]} 4. Bh4 {[%emt 0:00:28]} b6 {[%emt 0:00:11]} 5. e3 {[%emt 0:00:39]} Bb7 {[%emt 0:00:08]} 6. Bd3 {[%emt 0:04:56]} g5 {[%emt 0:02:03]} 7. Bg3 {[%emt 0:00:39]} g4 {[%emt 0:00:09]} 8. Nh4 {[%emt 0:25:29]} Rg8 {[%emt 0:00:46]} 9. h3 {[%emt 0:00:57]} Nh5 {[%emt 0:00:47]} 10. hxg4 {[%emt 0:15:09]} Nxg3 {[%emt 0:02:44]} 11. fxg3 {[%emt 0:01:56]} Bd6 {[%emt 0:02:53]} 12. Nf3 {[%emt 0:08:01]} Bxg3+ {[%emt 0:00:23]} 13. Kd2 {[%emt 0:01:28]} c5 {[%emt 0:01:46]} 14. c3 {[%emt 0:04:47]} Nc6 {[%emt 0:05:26]} 15. Rxh6 {[%emt 0:00:58]} Qe7 {[%emt 0:02:41]} 16. Rh3 {[%emt 0:02:15]} Bc7 {[%emt 0:00:32]} 17. Kc2 {[%emt 0:00:19]} O-O-O {[%emt 0:00:50]} 18. g5 {[%emt 0:00:03]} cxd4 {[%emt 0:02:12]} 19. exd4 {[%emt 0:06:30]} Bf4 {[%emt 0:02:39]} 20. Nbd2 {[%emt 0:08:15]} Bxg5 {[%emt 0:00:06]} 21. Nxg5 {[%emt 0:00:49]} Rxg5 {[%emt 0:01:05]} 22. Be4 {[%emt 0:00:29]} Rdg8 {[%emt 0:00:27]} 23. Bf3 {[%emt 0:03:28]} f5 {[%emt 0:06:40]} 24. Qe2 {[%emt 0:00:42]} Na5 {[%emt 0:00:41]} 25. d5 {[%emt 0:02:15]} e5 {[%emt 0:13:22]} 26. b4 {[%emt 0:01:28]} e4 {[%emt 0:00:04]} 27. bxa5 {[%emt 0:00:23]} Qc5 {[%emt 0:00:02]} 28. Nxe4 {[%emt 0:04:11]} fxe4 {[%emt 0:00:05]} 29. Qxe4 {[%emt 0:02:18]} Bxd5 {[%emt 0:02:32]} 30. Qd4 {[%emt 0:00:40]} Qxa5 {[%emt 0:02:01]} 31. Rh8 {[%emt 0:01:58]} Rxh8 {[%emt 0:01:07]} 32. Qxh8+ {[%emt 0:00:06]} Kc7 {[%emt 0:00:45]} 33. Qh2+ {[%emt 0:01:13]} Kb7 {[%emt 0:00:07]} 34. Qh3 {[%emt 0:01:20]} Qa4+ {[%emt 0:00:47]} 35. Kd2 {[%emt 0:00:48]} Qc6 {[%emt 0:02:25]} 36. Qh4 {[%emt 0:00:55]} Rg6 {[%emt 0:00:53]} 37. Re1 {[%emt 0:01:17]} Bxf3 {[%emt 0:00:27]} 38. gxf3 {[%emt 0:00:27]} Qxf3 {[%emt 0:00:26]} 39. Qd4 {[%emt 0:00:32]} Qc6 {[%emt 0:01:18]} 40. Kc1 {[%emt 0:00:27]} Rd6 {[%emt 0:05:39]} 41. Qe4 {[%emt 0:03:15]} Rd5 {[%emt 0:00:11]} 42. Kc2 {[%emt 0:00:21]} a5 {[%emt 0:00:56]} 43. Re2 {[%emt 0:02:36]} Ka7 {[%emt 0:00:18]} 44. c4 {[%emt 0:02:11]} Qa4+ {[%emt 0:00:35]} 45. Kb2 {[%emt 0:02:47]} Qb4+ {[%emt 0:00:04]} 46. Kc2 {[%emt 0:00:37]} Rc5 {[%emt 0:00:26]} 47. Kd3 {[%emt 0:00:35]} Qa3+ {[%emt 0:01:32]} 48. Kd4 {[%emt 0:00:20]} Qa4 {[%emt 0:01:10]} 49. Qc2 {[%emt 0:02:28]} Qc6 {[%emt 0:01:43]} 50. Qd3 {[%emt 0:00:55]} b5 {[%emt 0:01:05]} 51. Rc2 {[%emt 0:01:21]} Kb6 {[%emt 0:02:23]} 52. a4 {[%emt 0:02:42]} Rxc4+ {[%emt 0:00:34]} 53. Rxc4 {[%emt 0:00:28]} Qxc4+ {[%emt 0:00:05]} 54. Qxc4 {[%emt 0:00:04]} bxc4 {[%emt 0:00:05]} 55. Kxc4 {[%emt 0:00:03]} Kc6 {[%emt 0:00:04]} 56. Kd4 {[%emt 0:01:13]} d5 {[%emt 0:00:06]} 57. Kc3 {[%emt 0:00:24]} Kc5 {[%emt 0:00:09]} 58. Kb3 {[%emt 0:00:53]} Kd4 {[%emt 0:00:04]} 0-1

[Event "2nd Sparkasse Trophy Harrwitz Memorial"]
[Site "Bolzano"]
[Date "2025.04.27"]
[Round "5.4"]
[White "Olivetti, Davide"]
[Black "Tripi, Nicolo`"]
[Result "1-0"]
[Annotator "ChessBase"]
[ECO "B20"]
[WhiteElo "2224"]
[BlackElo "2020"]
[PlyCount "119"]
[EventDate "2025.04.19"]
[EventType "swiss"]
[EventCountry "ITA"]
[SourceTitle "playchess.com"]
[Source "ChessBase"]
[SourceQuality "1"]
[TimeControl "40/5400+30:900+30"]

1. e4 {[%emt 0:00:07]} c5 {[%emt 0:00:11]} 2. b4 {[%emt 0:02:00]} cxb4 {[%emt 0:03:26]} 3. a3 {[%emt 0:00:07]} e6 {[%emt 0:00:17]} 4. axb4 {[%emt 0:00:29]} Bxb4 {[%emt 0:00:15]} 5. c3 {[%emt 0:00:08]} Bf8 {[%emt 0:10:53]} 6. d4 {[%emt 0:00:37]} d5 {[%emt 0:00:29]} 7. e5 {[%emt 0:00:26]} Nc6 {[%emt 0:01:38]} 8. Bd3 {[%emt 0:02:04]} Bd7 {[%emt 0:02:07]} 9. Nh3 {[%emt 0:00:14]} Nge7 {[%emt 0:09:42]} 10. O-O {[%emt 0:00:51]} Nf5 {[%emt 0:01:34]} 11. Kh1 {[%emt 0:04:31]} h5 {[%emt 0:00:40]} 12. Nf4 {[%emt 0:02:07]} Nce7 {[%emt 0:06:12]} 13. Nxh5 {[%emt 0:00:45]} Qc7 {[%emt 0:04:49]} 14. Kg1 {[%emt 0:05:36]} a6 {[%emt 0:04:38]} 15. Ng3 {[%emt 0:16:26]} g6 {[%emt 0:06:30]} 16. Bg5 {[%emt 0:02:44]} Bg7 {[%emt 0:00:12]} 17. Qb3 {[%emt 0:04:17]} Rc8 {[%emt 0:02:37]} 18. Ne2 {[%emt 0:05:51]} f6 {[%emt 0:02:19]} 19. Bf4 {[%emt 0:01:37]} fxe5 {[%emt 0:00:17]} 20. dxe5 {[%emt 0:00:26]} Bxe5 {[%emt 0:00:37]} 21. Bg3 {[%emt 0:00:26]} Nxg3 {[%emt 0:07:33]} 22. fxg3 {[%emt 0:00:02]} Nf5 {[%emt 0:02:29]} 23. Rf3 {[%emt 0:00:21]} Qc5+ {[%emt 0:03:21]} 24. Kh1 {[%emt 0:00:09]} Rxh2+ {[%emt 0:20:25]} 25. Kxh2 {[%emt 0:00:22]} Ke7 {[%emt 0:00:33]} 26. Nf4 {[%emt 0:02:26]} Rh8+ {[%emt 0:01:59]} 27. Nh3 {[%emt 0:00:06]} Nxg3 {[%emt 0:04:09]} 28. Qa3 {[%emt 0:01:48]} Nf1+ {[%emt 0:00:10]} 29. Kh1 {[%emt 0:00:07]} Ng3+ {[%emt 0:00:05]} 30. Rxg3 {[%emt 0:00:23]} Qxa3 {[%emt 0:00:06]} 31. Nxa3 {[%emt 0:00:10]} Bxg3 {[%emt 0:00:06]} 32. Rf1 {[%emt 0:04:25]} g5 {[%emt 0:00:55]} 33. Kg1 {[%emt 0:00:37]} g4 {[%emt 0:00:37]} 34. Ng5 {[%emt 0:00:19]} Bh2+ {[%emt 0:01:06]} 35. Kf2 {[%emt 0:00:10]} Bf4 {[%emt 0:00:57]} 36. Nh7 {[%emt 0:00:50]} e5 {[%emt 0:00:27]} 37. g3 {[%emt 0:00:55]} e4 {[%emt 0:00:35]} 38. gxf4 {[%emt 0:00:31]} Rxh7 {[%emt 0:00:20]} 39. Be2 {[%emt 0:00:15]} Rh3 {[%emt 0:01:34]} 40. Rg1 {[%emt 0:05:15]} Rxc3 {[%emt 0:00:27]} 41. Nb1 {[%emt 0:15:01]} Rc2 {[%emt 0:16:34]} 42. Ke3 {[%emt 0:00:57]} d4+ {[%emt 0:00:00]} 43. Kxd4 {[%emt 0:00:00]} Rxe2 {[%emt 0:00:00]} 44. Nc3 {[%emt 0:00:00]} Rd2+ {[%emt 0:00:00]} 45. Ke5 {[%emt 0:00:00]} e3 {[%emt 0:00:00]} 46. Nd5+ {[%emt 0:00:00]} Rxd5+ {[%emt 0:00:00]} 47. Kxd5 {[%emt 0:00:00]} e2 {[%emt 0:00:30]} 48. Ke5 {[%emt 0:00:00]} g3 {[%emt 0:00:38]} 49. f5 {[%emt 0:00:00]} Bxf5 {[%emt 0:00:12]} 50. Kxf5 {[%emt 0:00:00]} g2 {[%emt 0:00:03]} 51. Ke4 {[%emt 0:00:00]} Kd6 {[%emt 0:00:22]} 52. Kd3 {[%emt 0:00:00]} Kc5 {[%emt 0:00:07]} 53. Kxe2 {[%emt 0:00:00]} Kc4 {[%emt 0:00:15]} 54. Kd2 {[%emt 0:00:00]} Kb3 {[%emt 0:00:06]} 55. Kc1 {[%emt 0:00:00]} b5 {[%emt 0:00:12]} 56. Kb1 {[%emt 0:00:00]} a5 {[%emt 0:00:24]} 57. Rxg2 {[%emt 0:00:00]} b4 {[%emt 0:00:12]} 58. Rg3+ {[%emt 0:00:00]} Kc4 {[%emt 0:00:01]} 59. Kb2 {[%emt 0:00:00]} a4 {[%emt 0:00:02]} 60. Rg5 {[%emt 0:00:00]} 1-0

[Event "2nd Sparkasse Trophy Harrwitz Memorial"]
[Site "Bolzano"]
[Date "2025.04.27"]
[Round "5.5"]
[White "De Vita, Gianni"]
[Black "Radice, Luca"]
[Result "1/2-1/2"]
[Annotator "NA"]
[ECO "C01"]
[WhiteElo "1975"]
[BlackElo "1963"]
[PlyCount "120"]
[EventDate "2025.04.19"]
[EventType "swiss"]
[EventCountry "ITA"]
[SourceTitle "playchess.com"]
[Source "ChessBase"]
[SourceQuality "1"]
[TimeControl "40/5400+30:900+30"]

1. e4 {[%emt 0:00:01]} e6 {[%emt 0:00:15]} 2. d4 {[%emt 0:00:17]} d5 {[%emt 0:00:07]} 3. exd5 {[%emt 0:01:56]} exd5 {[%emt 0:00:11]} 4. Nf3 {[%emt 0:00:06]} Nc6 {[%emt 0:01:13]} 5. Bd3 {[%emt 0:00:46]} Bd6 {[%emt 0:00:28]} 6. O-O {[%emt 0:00:41]} Bg4 {[%emt 0:01:12]} 7. Re1+ {[%emt 0:00:43]} Nge7 {[%emt 0:00:20]} 8. c3 {[%emt 0:00:08]} Qd7 {[%emt 0:00:41]} 9. Nbd2 {[%emt 0:02:17]} O-O-O {[%emt 0:01:21]} 10. a4 {[%emt 0:00:32]} f6 {[%emt 0:02:35]} 11. a5 {[%emt 0:00:29]} g5 {[%emt 0:01:17]} 12. a6 {[%emt 0:00:16]} b6 {[%emt 0:02:33]} 13. Bb5 {[%emt 0:01:40]} Bf4 {[%emt 0:12:54]} 14. Rxe7 {[%emt 0:02:52]} Qxe7 {[%emt 0:04:50]} 15. Bxc6 {[%emt 0:00:59]} Bxh2+ {[%emt 0:05:58]} 16. Kh1 {[%emt 0:08:01]} Bf4 {[%emt 0:03:28]} 17. Ne5 fxe5 {[%emt 0:11:46]} 18. Qxg4+ {[%emt 0:02:05]} Kb8 {[%emt 0:00:07]} 19. Nf3 {[%emt 0:06:50]} h5 {[%emt 0:04:56]} 20. Qf5 {[%emt 0:00:10]} Rhf8 {[%emt 0:00:19]} 21. Qc2 {[%emt 0:01:31]} g4 {[%emt 0:05:12]} 22. Bxf4 {[%emt 0:03:26]} gxf3 {[%emt 0:04:11]} 23. Bxe5 {[%emt 0:01:48]} fxg2+ {[%emt 0:09:56]} 24. Kg1 {[%emt 0:00:59]} Qh4 {[%emt 0:11:11]} 25. Bh2 {[%emt 0:01:08]} Rf3 {[%emt 0:00:24]} 26. Qe2 {[%emt 0:01:01]} Rdf8 {[%emt 0:01:16]} 27. Re1 {[%emt 0:01:30]} Qxf2+ {[%emt 0:02:34]} 28. Qxf2 {[%emt 0:00:40]} Rxf2 {[%emt 0:00:03]} 29. Re8+ {[%emt 0:01:25]} Rxe8 {[%emt 0:00:12]} 30. Kxf2 {[%emt 0:00:12]} Rg8 {[%emt 0:04:06]} 31. Bxd5 {[%emt 0:00:37]} Rg5 {[%emt 0:00:18]} 32. Bxg2 {[%emt 0:08:15]} Ra5 {[%emt 0:00:16]} 33. Bb7 {[%emt 0:02:50]} Ra2 {[%emt 0:00:02]} 34. Be5 {[%emt 0:01:28]} Rxb2+ {[%emt 0:00:17]} 35. Ke3 {[%emt 0:00:02]} Rb1 {[%emt 0:07:44]} 36. d5 {[%emt 0:03:10]} Re1+ {[%emt 0:00:24]} 37. Kf4 {[%emt 0:00:12]} Rd1 {[%emt 0:00:41]} 38. Kf5 {[%emt 0:00:14]} h4 {[%emt 0:03:26]} 39. Ke6 {[%emt 0:00:15]} Re1 {[%emt 0:00:11]} 40. d6 {[%emt 0:01:50]} cxd6 {[%emt 0:00:38]} 41. Kxd6 {[%emt 0:15:02]} b5 {[%emt 0:01:22]} 42. Ke6+ {[%emt 0:00:00]} Rxe5+ {[%emt 0:04:57]} 43. Kxe5 {[%emt 0:00:00]} Kc7 {[%emt 0:01:19]} 44. Kf4 {[%emt 0:00:00]} Kb6 {[%emt 0:01:23]} 45. Kg4 {[%emt 0:00:00]} Kc5 {[%emt 0:01:04]} 46. Bc8 {[%emt 0:00:00]} b4 {[%emt 0:03:26]} 47. cxb4+ {[%emt 0:00:00]} Kxb4 {[%emt 0:00:06]} 48. Bf5 {[%emt 0:00:00]} Ka5 {[%emt 0:01:02]} 49. Bd3 {[%emt 0:00:00]} Kb6 {[%emt 0:00:09]} 50. Kxh4 {[%emt 0:00:00]} Kc7 {[%emt 0:00:23]} 51. Kg5 {[%emt 0:00:00]} Kb8 {[%emt 0:01:11]} 52. Kf6 {[%emt 0:00:00]} Kc7 {[%emt 0:00:41]} 53. Ke7 {[%emt 0:00:00]} Kc8 {[%emt 0:00:36]} 54. Kd6 {[%emt 0:00:00]} Kb8 {[%emt 0:00:47]} 55. Be4 {[%emt 0:00:00]} Kc8 {[%emt 0:00:12]} 56. Bf5+ {[%emt 0:00:00]} Kb8 {[%emt 0:00:25]} 57. Kc6 {[%emt 0:00:00]} Ka8 {[%emt 0:00:09]} 58. Be4 {[%emt 0:00:00]} Kb8 {[%emt 0:00:07]} 59. Bg2 {[%emt 0:00:00]} Kc8 {[%emt 0:00:18]} 60. Kd6 {[%emt 0:00:52]} Kb8 {[%emt 0:00:35]} 1/2-1/2

[Event "2nd Sparkasse Trophy Harrwitz Memorial"]
[Site "Bolzano"]
[Date "2025.04.27"]
[Round "5.6"]
[White "Valente, Luca"]
[Black "Gil, Arthur"]
[Result "0-1"]
[Annotator "NA"]
[ECO "A05"]
[WhiteElo "1885"]
[BlackElo "1937"]
[PlyCount "76"]
[EventDate "2025.04.19"]
[EventType "swiss"]
[EventCountry "ITA"]
[SourceTitle "playchess.com"]
[Source "ChessBase"]
[SourceQuality "1"]
[TimeControl "40/5400+30:900+30"]

1. Nf3 {[%emt 0:00:04]} Nf6 {[%emt 0:00:24]} 2. b3 {[%emt 0:00:11]} g6 {[%emt 0:00:45]} 3. g3 {[%emt 0:00:07]} Bg7 {[%emt 0:00:08]} 4. Bb2 {[%emt 0:00:08]} O-O {[%emt 0:00:20]} 5. Bg2 {[%emt 0:00:07]} d5 {[%emt 0:00:38]} 6. c4 {[%emt 0:00:07]} c5 {[%emt 0:01:57]} 7. cxd5 {[%emt 0:00:12]} Nxd5 {[%emt 0:00:16]} 8. Bxg7 {[%emt 0:00:09]} Kxg7 {[%emt 0:00:06]} 9. O-O {[%emt 0:00:07]} Nc6 {[%emt 0:00:53]} 10. d4 {[%emt 0:00:07]} cxd4 {[%emt 0:08:29]} 11. Nxd4 {[%emt 0:00:09]} e5 {[%emt 0:09:15]} 12. Nxc6 {[%emt 0:05:43]} bxc6 {[%emt 0:00:32]} 13. Qc1 {[%emt 0:02:51]} Be6 {[%emt 0:07:00]} 14. Nc3 {[%emt 0:07:28]} Qa5 {[%emt 0:10:42]} 15. Ne4 {[%emt 0:07:36]} Rfd8 {[%emt 0:11:10]} 16. Nc5 {[%emt 0:09:09]} Bc8 {[%emt 0:05:23]} 17. Re1 {[%emt 0:18:27]} Rb8 {[%emt 0:03:29]} 18. a3 {[%emt 0:07:16]} Qb5 {[%emt 0:11:09]} 19. e4 {[%emt 0:09:32]} Nc7 {[%emt 0:05:54]} 20. Qc3 {[%emt 0:31:00]} f6 {[%emt 0:04:50]} 21. Bf1 {[%emt 0:00:00]} Qb6 {[%emt 0:00:19]} 22. Rad1 {[%emt 0:00:00]} Bg4 {[%emt 0:00:51]} 23. Rxd8 {[%emt 0:00:00]} Rxd8 {[%emt 0:00:11]} 24. h3 {[%emt 0:00:00]} Bc8 {[%emt 0:01:28]} 25. Rc1 {[%emt 0:00:00]} Nb5 {[%emt 0:00:59]} 26. Bxb5 {[%emt 0:00:00]} Qxb5 {[%emt 0:00:37]} 27. Kg2 {[%emt 0:00:00]} Rd4 {[%emt 0:03:36]} 28. b4 {[%emt 0:00:00]} h5 {[%emt 0:00:29]} 29. Rc2 {[%emt 0:00:00]} a5 {[%emt 0:05:52]} 30. Rd2 {[%emt 0:02:53]} axb4 {[%emt 0:00:49]} 31. axb4 {[%emt 0:00:11]} Rxb4 {[%emt 0:01:33]} 32. Rd8 {[%emt 0:01:19]} Bxh3+ {[%emt 0:01:06]} 33. Kxh3 {[%emt 0:00:13]} Qf1+ {[%emt 0:00:28]} 34. Kh2 {[%emt 0:00:28]} Qxf2+ {[%emt 0:01:15]} 35. Kh3 {[%emt 0:00:04]} Rb2 {[%emt 0:02:48]} 36. Ne6+ {[%emt 0:00:35]} Kh7 {[%emt 0:00:09]} 37. Nf8+ {[%emt 0:00:54]} Kh6 {[%emt 0:00:15]} 38. Qc1+ {[%emt 0:00:20]} g5 {[%emt 0:00:24]} 0-1

[Event "2nd Sparkasse Trophy Harrwitz Memorial"]
[Site "Bolzano"]
[Date "2025.04.27"]
[Round "6.1"]
[White "Olivetti, Davide"]
[Black "Csontos, Aron"]
[Result "1-0"]
[Annotator "ChessBase"]
[ECO "A25"]
[WhiteElo "2224"]
[BlackElo "2262"]
[PlyCount "83"]
[EventDate "2025.04.19"]
[EventType "swiss"]
[EventCountry "ITA"]
[SourceTitle "playchess.com"]
[Source "ChessBase"]
[SourceQuality "1"]
[TimeControl "40/5400+30:900+30"]

1. c4 {[%emt 0:00:02]} e5 {[%emt 0:00:05]} 2. g3 {[%emt 0:00:10]} Nc6 {[%emt 0:00:06]} 3. Bg2 {[%emt 0:00:21]} Bc5 {[%emt 0:00:15]} 4. Nc3 {[%emt 0:01:40]} a6 {[%emt 0:00:11]} 5. e3 {[%emt 0:00:20]} d6 {[%emt 0:00:17]} 6. Nge2 {[%emt 0:00:34]} Ba7 {[%emt 0:00:06]} 7. d4 {[%emt 0:02:05]} exd4 {[%emt 0:01:41]} 8. exd4 {[%emt 0:00:15]} Nge7 {[%emt 0:00:35]} 9. O-O {[%emt 0:04:38]} O-O {[%emt 0:00:14]} 10. b3 {[%emt 0:03:19]} Rb8 {[%emt 0:03:20]} 11. Bb2 {[%emt 0:01:27]} b5 {[%emt 0:04:02]} 12. cxb5 {[%emt 0:00:13]} axb5 {[%emt 0:00:05]} 13. Qd2 {[%emt 0:03:39]} b4 {[%emt 0:12:04]} 14. Nd1 {[%emt 0:01:21]} Ba6 {[%emt 0:02:49]} 15. Re1 {[%emt 0:01:07]} Qd7 {[%emt 0:06:26]} 16. Ne3 {[%emt 0:00:45]} Ng6 {[%emt 0:00:36]} 17. h4 {[%emt 0:03:57]} h6 {[%emt 0:03:44]} 18. Kh2 {[%emt 0:04:14]} f5 {[%emt 0:09:03]} 19. Rac1 {[%emt 0:04:40]} f4 {[%emt 0:08:48]} 20. Bxc6 {[%emt 0:03:19]} fxe3 {[%emt 0:00:06]} 21. Qxe3 {[%emt 0:00:44]} Qf5 {[%emt 0:00:26]} 22. f4 {[%emt 0:02:04]} d5 {[%emt 0:00:22]} 23. Ng1 {[%emt 0:01:27]} Bc8 {[%emt 0:02:39]} 24. Qf3 {[%emt 0:01:26]} Bb7 {[%emt 0:02:31]} 25. Bxb7 {[%emt 0:01:44]} Rxb7 {[%emt 0:00:06]} 26. h5 {[%emt 0:00:13]} Nh8 {[%emt 0:00:53]} 27. Re5 {[%emt 0:00:16]} Qc8 {[%emt 0:00:53]} 28. Qxd5+ {[%emt 0:00:30]} Nf7 {[%emt 0:00:15]} 29. Re7 {[%emt 0:02:42]} c6 {[%emt 0:03:01]} 30. Rxb7 {[%emt 0:03:13]} Qxb7 {[%emt 0:00:34]} 31. Qxc6 {[%emt 0:04:02]} Qb8 {[%emt 0:00:34]} 32. Nf3 {[%emt 0:03:37]} Re8 {[%emt 0:04:55]} 33. Re1 {[%emt 0:03:25]} Rc8 {[%emt 0:01:15]} 34. Qe4 {[%emt 0:00:22]} Qb5 {[%emt 0:03:40]} 35. d5 {[%emt 0:00:53]} Qb6 {[%emt 0:01:28]} 36. Re2 {[%emt 0:01:00]} Qb5 {[%emt 0:01:17]} 37. Nd4 {[%emt 0:02:59]} Qc5 {[%emt 0:01:45]} 38. Rc2 {[%emt 0:01:26]} Qf8 {[%emt 0:00:06]} 39. Rxc8 {[%emt 0:01:04]} Qxc8 {[%emt 0:00:04]} 40. Nc6 {[%emt 0:01:17]} Bc5 {[%emt 0:01:19]} 41. Qe6 {[%emt 0:17:29]} Qa6 {[%emt 0:15:47]} 42. Ne7+ {[%emt 0:00:17]} 1-0

[Event "2nd Sparkasse Trophy Harrwitz Memorial"]
[Site "Bolzano"]
[Date "2025.04.27"]
[Round "6.2"]
[White "Casadio, Niccolo`"]
[Black "Bonagura, Stefano"]
[Result "1-0"]
[Annotator "ChessBase"]
[ECO "C54"]
[WhiteElo "2268"]
[BlackElo "2199"]
[PlyCount "81"]
[EventDate "2025.04.19"]
[EventType "swiss"]
[EventCountry "ITA"]
[SourceTitle "playchess.com"]
[Source "ChessBase"]
[SourceQuality "1"]
[TimeControl "40/5400+30:900+30"]

1. e4 {[%emt 0:00:22]} e5 {[%emt 0:00:23]} 2. Nf3 {[%emt 0:00:06]} Nc6 {[%emt 0:00:09]} 3. Bc4 {[%emt 0:00:04]} Bc5 {[%emt 0:00:27]} 4. O-O {[%emt 0:00:08]} Nf6 {[%emt 0:00:48]} 5. d3 {[%emt 0:00:13]} O-O {[%emt 0:01:21]} 6. c3 {[%emt 0:00:07]} d5 {[%emt 0:03:32]} 7. exd5 {[%emt 0:00:51]} Nxd5 {[%emt 0:00:07]} 8. a4 {[%emt 0:00:24]} Bg4 {[%emt 0:01:52]} 9. h3 {[%emt 0:00:50]} Bh5 {[%emt 0:00:38]} 10. Nbd2 {[%emt 0:00:46]} Nb6 {[%emt 0:01:10]} 11. Bb5 {[%emt 0:00:15]} a5 {[%emt 0:41:58]} 12. Re1 {[%emt 0:04:45]} Bd6 {[%emt 0:01:14]} 13. Ne4 {[%emt 0:02:35]} f5 {[%emt 0:03:04]} 14. Ng3 {[%emt 0:00:50]} Bxf3 {[%emt 0:00:58]} 15. Qxf3 {[%emt 0:00:03]} Qd7 {[%emt 0:00:15]} 16. Be3 {[%emt 0:05:45]} e4 {[%emt 0:14:37]} 17. Qh5 {[%emt 0:04:02]} f4 {[%emt 0:10:25]} 18. Bxb6 {[%emt 0:00:09]} fxg3 {[%emt 0:00:07]} 19. Bd4 {[%emt 0:02:42]} Nxd4 {[%emt 0:08:38]} 20. Bxd7 {[%emt 0:00:42]} gxf2+ {[%emt 0:00:02]} 21. Kh1 {[%emt 0:00:43]} Nc2 {[%emt 0:00:37]} 22. Rf1 {[%emt 0:01:48]} Nxa1 {[%emt 0:03:11]} 23. Be6+ {[%emt 0:01:48]} Kh8 {[%emt 0:00:06]} 24. Bf5 {[%emt 0:00:20]} Rxf5 {[%emt 0:00:41]} 25. Qxf5 {[%emt 0:00:02]} e3 {[%emt 0:00:14]} 26. Qe4 {[%emt 0:00:15]} Nc2 {[%emt 0:03:48]} 27. d4 {[%emt 0:00:08]} Bg3 {[%emt 0:00:52]} 28. Qxc2 {[%emt 0:00:36]} Re8 {[%emt 0:00:01]} 29. Qe2 {[%emt 0:00:06]} g6 {[%emt 0:01:02]} 30. b4 {[%emt 0:00:18]} b6 {[%emt 0:00:42]} 31. bxa5 {[%emt 0:00:25]} bxa5 {[%emt 0:00:01]} 32. c4 {[%emt 0:00:30]} Kg7 {[%emt 0:01:59]} 33. d5 {[%emt 0:00:05]} Re4 {[%emt 0:00:29]} 34. c5 {[%emt 0:00:36]} Bf4 {[%emt 0:00:39]} 35. g3 {[%emt 0:00:05]} Bxg3 {[%emt 0:00:21]} 36. Kg2 {[%emt 0:00:13]} Bh4 {[%emt 0:00:25]} 37. d6 {[%emt 0:00:17]} cxd6 {[%emt 0:00:35]} 38. cxd6 {[%emt 0:00:09]} Kf6 {[%emt 0:01:15]} 39. d7 {[%emt 0:00:29]} Kf5 {[%emt 0:00:36]} 40. Rd1 {[%emt 0:00:42]} Bd8 {[%emt 0:00:21]} 41. Rd3 {[%emt 0:15:36]} 1-0